fUSD/lending_fUSD_20240426
["ID","MTS","AMOUNT","RATE_DAILY","PERIOD"]
[323678349,1714159851983,-500.0,0.00011506,2]
[323678350,1714159851993,-1963.82,0.00011506,2]
[323678351,1714159852003,-2154.64,0.00011506,2]
[323678352,1714159852012,-867.14,0.00011506,2]
[323678353,1714159852022,-500.0,0.00011506,2]
[323678354,1714159852032,-2372.44,0.00011506,2]
[323678355,1714159852043,-4510.22,0.00011506,2]
[323678356,1714159852054,-500.0,0.00011506,2]
[323678357,1714159852064,-1470.12,0.00011506,2]
[323678358,1714159852075,-500.0,0.00011506,2]
[323678359,1714159852086,-1081.84,0.00011506,2]
[323678360,1714159852096,-2465.42,0.00011506,2]
[323678361,1714159852106,-1591.78,0.00011506,2]
[323678362,1714159852117,-4572.23,0.00011506,2]
[323678363,1714159852127,-500.0,0.00011506,2]
[323678364,1714159852138,-881.87,0.00011506,2]
[323678365,1714159852148,-5646.67,0.00011506,2]
[323678366,1714159852158,-500.0,0.00011506,2]
[323678367,1714159852168,-654.29,0.00011506,2]
[323678368,1714159852178,-2969.24,0.00011506,2]
[323678369,1714159852188,-962.29,0.00011506,2]
[323678370,1714159852198,-500.0,0.00011506,2]
[323678371,1714159852209,-2885.58,0.00011506,2]
[323678372,1714159852219,-865.94,0.00011506,2]
[323678373,1714159852229,-1054.2,0.00011506,2]
[323678374,1714159852240,-856.74,0.00011506,2]
[323678375,1714159852250,-500.0,0.00011506,2]
[323678376,1714159852259,-1017.43,0.00011506,2]
[323678377,1714159852269,-940.44,0.00011506,2]
[323678378,1714159852281,-1246.24,0.00011506,2]
[323678379,1714159852291,-500.0,0.00011506,2]
[323678380,1714159852301,-500.0,0.00011506,2]
[323678381,1714159852312,-500.0,0.00011506,2]
[323678382,1714159852323,-908.96,0.00011506,2]
[323678383,1714159852333,-1724.94,0.00011506,2]
[323678384,1714159852344,-500.0,0.00011506,2]
[323678385,1714159852354,-500.0,0.00011506,2]
[323678386,1714159852364,-4684.36,0.00011506,2]
[323678387,1714159852375,-500.0,0.00011506,2]
[323678388,1714159852385,-456.83781404,0.00011506,2]
[323678389,1714159852395,-500.0,0.00011506,2]
[323678390,1714159852404,-5610.35,0.00011506,2]
[323678391,1714159852414,-500.0,0.00011506,2]
[323678392,1714159852423,-985.86,0.00011506,2]
[323678393,1714159852433,-500.0,0.00011506,2]
[323678394,1714159852444,-2974.11,0.00011506,2]
[323678395,1714159852454,-500.0,0.00011506,2]
[323678396,1714159852464,-500.0,0.00011506,2]
[323678397,1714159852474,-2451.96,0.00011506,2]
[323678398,1714159852485,-793.01,0.00011506,2]
[323678399,1714159852495,-4076.46,0.00011506,2]
[323678400,1714159852506,-500.0,0.00011506,2]
[323678401,1714159852516,-500.0,0.00011506,2]
[323678402,1714159852526,-3332.68,0.00011506,2]
[323678403,1714159852540,-1281.89,0.00011506,2]
[323678404,1714159852550,-3135.1,0.00011506,2]
[323678405,1714159852561,-576.33,0.0001151,2]
[323678406,1714159852571,-500.0,0.0001151,2]
[323678407,1714159852584,-500.0,0.0001151,2]
[323678408,1714159852594,-500.0,0.0001151,2]
[323678409,1714159852605,-662.88,0.0001151,2]
[323678410,1714159852616,-641.96,0.0001151,2]
[323678411,1714159852626,-500.0,0.0001151,2]
[323678412,1714159852637,-500.0,0.0001151,2]
[323678413,1714159852647,-500.0,0.0001151,2]
[323678414,1714159852657,-1376.86,0.0001151,2]
[323678415,1714159852668,-764.8,0.0001151,2]
[323678416,1714159852678,-500.0,0.0001151,2]
[323678417,1714159852687,-919.05,0.0001151,2]
[323678418,1714159852697,-500.0,0.0001151,2]
[323678419,1714159852707,-500.0,0.0001151,2]
[323678420,1714159852717,-1129.06,0.0001151,2]
[323678421,1714159852730,-2002.08,0.0001151,2]
[323678422,1714159852741,-502.56,0.0001151,2]
[323678423,1714159852752,-1280.9,0.0001151,2]
[323678424,1714159852763,-504.57,0.0001151,2]
[323678425,1714159852774,-2787.79,0.0001151,2]
[323678426,1714159852785,-1391.64,0.0001151,2]
[323678427,1714159852795,-1226.25,0.0001151,2]
[323678428,1714159852806,-369.51438269,0.0001151,2]
[323678429,1714159852816,-846.91,0.0001151,2]
[323678430,1714159852827,-8342.79,0.0001151,2]
[323678431,1714159852836,-8389.24,0.0001151,2]
[323678432,1714159852847,-500.0,0.0001151,2]
[323678433,1714159852856,-1456.89,0.0001151,2]
[323678434,1714159852868,-2238.91,0.0001151,2]
[323678435,1714159852878,-7129.32,0.0001151,2]
[323678436,1714159852887,-1865.52,0.0001151,2]
[323678437,1714159852897,-151.0,0.00011511,2]
[323678438,1714159852908,-500.0,0.00011511,2]
[323678439,1714159852920,-687.76,0.00011511,2]
[323678440,1714159852930,-526.4,0.00011511,2]
[323678441,1714159852940,-500.0,0.00011511,2]
[323678442,1714159852949,-500.0,0.00011511,2]
[323678443,1714159852959,-1168.82,0.00011511,2]
[323678444,1714159852968,-500.0,0.00011511,2]
[323678445,1714159852977,-500.0,0.00011511,2]
[323678446,1714159852986,-713.8,0.00011511,2]
[323678447,1714159852996,-643.3,0.00011511,2]
[323678448,1714159853006,-593.29,0.00011511,2]
[323678449,1714159853016,-500.0,0.00011511,2]
[323678450,1714159853025,-948.39,0.00011511,2]
[323678451,1714159853036,-797.82,0.00011511,2]
[323678452,1714159853046,-703.42,0.00011511,2]
[323678453,1714159853056,-500.0,0.00011511,2]
[323678454,1714159853067,-650.99,0.00011511,2]
[323678455,1714159853076,-455.80502052,0.00011511,2]
[323678456,1714159853091,-392.89497948,0.00011511,2]
[323678457,1714159853101,-500.0,0.00011511,2]
[323678458,1714159853112,-500.0,0.00011511,2]
[323678459,1714159853121,-500.0,0.00011511,2]
[323678460,1714159853131,-716.68,0.00011511,2]
[323678461,1714159853140,-500.0,0.00011511,2]
[323678462,1714159853151,-141.9830892,0.00011511,2]
[323678463,1714159853163,-358.0169108,0.00011511,2]
[323678464,1714159853173,-84.42508917,0.00011511,2]
[323678465,1714159853185,-415.57491083,0.00011511,2]
[323678466,1714159853195,-92.98721714,0.00011511,2]
[323678467,1714159853208,-539.92278286,0.00011511,2]
[323678468,1714159853218,-882.72,0.00011511,2]
[323678469,1714159853227,-500.0,0.00011511,2]
[323678470,1714159853236,-500.0,0.00011511,2]
[323678471,1714159853245,-500.0,0.00011511,2]
[323678472,1714159853254,-500.0,0.00011511,2]
[323678473,1714159853263,-399.81575014,0.00011511,2]
[323678474,1714159853330,-500.0,0.00011506,2]
[323678475,1714159853339,-268.30424986,0.00011511,2]
[323678476,1714159853349,-500.0,0.00011511,2]
[323678477,1714159853358,-500.0,0.00011511,2]
[323678478,1714159853367,-1154.14,0.00011511,2]
[323678479,1714159853376,-500.0,0.00011511,2]
[323678480,1714159853385,-500.0,0.00011511,2]
[323678481,1714159853395,-500.0,0.00011511,2]
[323678482,1714159853404,-500.0,0.00011511,2]
[323678483,1714159853413,-584.29,0.00011511,2]
[323678484,1714159853422,-500.0,0.00011511,2]
[323678485,1714159853431,-948.11,0.00011511,2]
[323678486,1714159853441,-775.9,0.00011511,2]
[323678487,1714159853451,-500.0,0.00011512,2]
[323678488,1714159853461,-500.0,0.00011512,2]
[323678489,1714159853470,-500.0,0.00011512,2]
[323678490,1714159853479,-500.0,0.00011512,2]
[323678491,1714159853488,-500.0,0.00011512,2]
[323678492,1714159853497,-500.0,0.00011512,2]
[323678493,1714159853506,-500.0,0.00011512,2]
[323678494,1714159853516,-500.0,0.00011512,2]
[323678495,1714159853526,-500.0,0.00011512,2]
[323678496,1714159853536,-532.74,0.00011512,2]
[323678497,1714159853549,-500.0,0.00011512,2]
[323678498,1714159853560,-500.0,0.00011512,2]
[323678499,1714159853571,-1214.65,0.00011512,2]
[323678500,1714159853583,-500.0,0.00011512,2]
[323678501,1714159853593,-1259.1,0.00011512,2]
[323678502,1714159853603,-500.0,0.00011512,2]
[323678503,1714159853616,-500.0,0.00011512,2]
[323678504,1714159853627,-967.69,0.00011512,2]
[323678505,1714159853638,-715.1,0.00011512,2]
[323678506,1714159853649,-500.0,0.00011512,2]
[323678507,1714159853662,-3000.0,0.00011512,2]
[323678508,1714159853673,-12307.56140714,0.00011527,2]
[323678509,1714159853684,-1000.0,0.0001153,2]
[323678510,1714159853696,-500.0,0.0001153,2]
[323678511,1714159853709,-151.0,0.0001156,2]
[323678512,1714159853720,-2839.72603321,0.00011585,2]
[323678513,1714159853730,-440.5392371,0.00011614,2]
[323678514,1714159853742,-479.1598313,0.00011614,2]
[323678515,1714159853752,-4392.0575809,0.00011614,2]
[323678516,1714159853950,-2487.5601883,0.00011614,2]
[323678517,1714159853966,-14026.2345717,0.00011615,2]
[323678518,1714159853975,-2294.02134079,0.00011617,2]
[323678519,1714159853985,-207.19321246,0.00011623,2]
[323678520,1714159853994,-3233.2037942,0.00011623,2]
[323678521,1714159854003,-182.18056906,0.00011684,2]
[323678522,1714159854013,-166.32,0.00011732,2]
[323678523,1714159854023,-200.87,0.00011761,2]
[323678524,1714159854034,-2294.02134079,0.00011777,2]
[323678525,1714159854043,-500.0,0.0001178,2]
[323678526,1714159854055,-500.0,0.0001178,2]
[323678527,1714159854064,-500.0,0.0001178,2]
[323678528,1714159854074,-500.0,0.0001178,2]
[323678529,1714159854084,-500.0,0.0001178,2]
[323678530,1714159854094,-500.0,0.0001178,2]
[323678531,1714159854103,-601.57,0.0001178,2]
[323678532,1714159854113,-688.05,0.0001178,2]
[323678533,1714159854122,-1151.71,0.0001178,2]
[323678534,1714159854131,-500.0,0.0001178,2]
[323678535,1714159854140,-500.0,0.0001178,2]
[323678536,1714159854149,-500.0,0.0001178,2]
[323678537,1714159854159,-500.0,0.0001178,2]
[323678538,1714159854168,-500.0,0.0001178,2]
[323678539,1714159854178,-500.0,0.0001178,2]
[323678540,1714159854187,-500.0,0.0001178,2]
[323678541,1714159854197,-1525.29,0.0001178,2]
[323678542,1714159854208,-500.0,0.0001178,2]
[323678543,1714159854218,-680.02,0.0001178,2]
[323678544,1714159854228,-500.0,0.0001178,2]
[323678545,1714159854237,-520.73,0.0001178,2]
[323678546,1714159854246,-500.0,0.0001178,2]
[323678547,1714159854256,-975.22,0.0001178,2]
[323678548,1714159854265,-500.0,0.0001178,2]
[323678549,1714159854275,-1544.74,0.0001178,2]
[323678550,1714159854284,-1486.08,0.0001178,2]
[323678551,1714159854293,-1702.91,0.0001178,2]
[323678552,1714159854302,-585.45,0.0001178,2]
[323678553,1714159854312,-367.42,0.0001178,2]
[323678554,1714159854321,-500.0,0.0001178,2]
[323678555,1714159854331,-500.0,0.0001178,2]
[323678556,1714159854340,-500.0,0.0001178,2]
[323678557,1714159854349,-632.85,0.0001178,2]
[323678558,1714159854359,-199.59,0.0001178,2]
[323678559,1714159854368,-671.98,0.0001178,2]
[323678560,1714159854377,-775.88,0.0001178,2]
[323678561,1714159854387,-339.59781647,0.0001178,2]
[323678562,1714159854397,-500.0,0.0001178,2]
[323678563,1714159854406,-463.71,0.0001178,2]
[323678564,1714159854417,-500.0,0.0001178,2]
[323678565,1714159854426,-311.0960115,0.0001178,2]
[323678566,1714159854436,-582.67,0.0001178,2]
[323678567,1714159854445,-500.0,0.0001178,2]
[323678568,1714159854455,-646.89,0.0001178,2]
[323678569,1714159854466,-643.32,0.0001178,2]
[323678570,1714159854476,-369.3724,0.0001178,2]
[323678571,1714159854485,-500.0,0.0001178,2]
[323678572,1714159854494,-500.0,0.0001178,2]
[323678573,1714159854504,-500.0,0.0001178,2]
[323678574,1714159854513,-1123.91,0.0001178,2]
[323678575,1714159854522,-1563.01,0.0001178,2]
[323678576,1714159854531,-1063.67,0.0001178,2]
[323678577,1714159854543,-500.0,0.0001178,2]
[323678578,1714159854552,-500.0,0.0001178,2]
[323678579,1714159854561,-592.65,0.0001178,2]
[323678580,1714159854571,-500.0,0.0001178,2]
[323678581,1714159854581,-656.54,0.0001178,2]
[323678582,1714159854590,-500.0,0.0001178,2]
[323678583,1714159854600,-7660.99,0.0001178,2]
[323678584,1714159854609,-2234.13,0.0001178,2]
[323678585,1714159854622,-3044.78,0.0001178,2]
[323678586,1714159854632,-2454.22,0.0001178,2]
[323678587,1714159854642,-500.0,0.0001178,2]
[323678588,1714159854651,-500.0,0.0001178,2]
[323678589,1714159854661,-3430.07,0.0001178,2]
[323678590,1714159854670,-1415.67,0.0001178,2]
[323678591,1714159854680,-1027.85,0.0001178,2]
[323678592,1714159854690,-500.0,0.0001178,2]
[323678593,1714159854700,-6389.39,0.0001178,2]
[323678594,1714159854711,-5288.95,0.0001178,2]
[323678595,1714159854720,-500.0,0.0001178,2]
[323678596,1714159854730,-500.0,0.0001178,2]
[323678597,1714159854739,-3787.09,0.0001178,2]
[323678598,1714159854748,-500.0,0.0001178,2]
[323678599,1714159854757,-500.0,0.0001178,2]
[323678600,1714159854766,-500.0,0.0001178,2]
[323678601,1714159854776,-1627.11,0.0001178,2]
[323678602,1714159854785,-860.61,0.0001178,2]
[323678603,1714159854794,-1331.43,0.0001178,2]
[323678604,1714159854804,-615.31,0.0001178,2]
[323678605,1714159854813,-2719.93,0.0001178,2]
[323678606,1714159854823,-1056.44,0.0001178,2]
[323678607,1714159854833,-500.0,0.0001178,2]
[323678608,1714159854842,-3269.59,0.0001178,2]
[323678609,1714159854851,-1136.5,0.0001178,2]
[323678610,1714159854861,-500.0,0.0001178,2]
[323678611,1714159854870,-993.51,0.0001178,2]
[323678612,1714159854879,-1427.41,0.0001178,2]
[323678613,1714159854888,-500.0,0.0001178,2]
[323678614,1714159854898,-1740.47,0.0001178,2]
[323678615,1714159854909,-522.01,0.0001178,2]
[323678616,1714159854920,-7906.24,0.0001178,2]
[323678617,1714159854931,-1246.52,0.0001178,2]
[323678618,1714159854941,-2997.97,0.0001178,2]
[323678619,1714159854951,-2041.1,0.0001178,2]
[323678620,1714159854960,-737.41,0.0001178,2]
[323678621,1714159854969,-500.0,0.0001178,2]
[323678622,1714159854978,-2116.70041522,0.0001178,2]
[323678623,1714159855048,-1450.37958478,0.0001178,2]
[323678624,1714159855057,-92.6850014,0.0001178,2]
[323678625,1714159855069,-1197.4849986,0.0001178,2]
[323678626,1714159855079,-2282.42,0.0001178,2]
[323678627,1714159855088,-669.1,0.0001178,2]
[323678628,1714159855098,-928.13,0.0001178,2]
[323678629,1714159855109,-4813.64603549,0.0001178,2]
[323678630,1714159855122,-61.03396451,0.0001178,2]
[323678631,1714159855134,-2108.172031,0.0001178,2]
[323678632,1714159855145,-2000.68,0.0001178,2]
[323678633,1714159855155,-905.84,0.0001178,2]
[323678634,1714159855165,-1808.04,0.0001178,2]
[323678635,1714159855176,-2215.46,0.0001178,2]
[323678636,1714159855185,-2108.172031,0.0001178,2]
[323678637,1714159855194,-1977.46,0.0001178,2]
[323678638,1714159855204,-500.0,0.0001178,2]
[323678639,1714159855214,-1162.29,0.0001178,2]
[323678640,1714159855223,-1124.54,0.0001178,2]
[323678641,1714159855233,-2034.05,0.0001178,2]
[323678642,1714159855244,-884.62,0.0001178,2]
[323678643,1714159855254,-500.0,0.0001178,2]
[323678644,1714159855263,-360.12876773,0.0001178,2]
[323678645,1714159855287,-139.87123227,0.0001178,2]
[323678646,1714159855297,-500.0,0.0001178,2]
[323678647,1714159855306,-2473.12876774,0.0001178,2]
[323678648,1714159855787,-381.43098051,0.00010957,2]
[323678649,1714159855796,-147.70384668,0.00010958,2]
[323678650,1714159855810,-3127.0,0.00010958,2]
[323678651,1714159855822,-320.32,0.00010958,2]
[323678652,1714159855833,-1003.53615332,0.00010958,2]
[323678653,1714159855842,-212.57997003,0.00010958,2]
[323678654,1714159855923,-287.42002997,0.00010958,2]
[323678655,1714159855933,-506.33802982,0.00010958,2]
[323678656,1714159855942,-2673.68402161,0.00011232,2]
[323678657,1714159855953,-1924.87597839,0.00011232,2]
[323678658,1714159855963,-4467.42402161,0.00011506,2]
[323678659,1714159855986,-131.13597839,0.00011506,2]
[323678660,1714159855996,-199.22123226,0.0001178,2]
[323678661,1714159856005,-819.07176847,0.0001178,2]
[323678662,1714159856017,-994.11823153,0.0001178,2]
[323678663,1714159856026,-5.79773327,0.0001178,2]
[323678664,1714159856037,-999.6079016,0.0001178,2]
[323678665,1714159856048,-608.44436513,0.0001178,2]
[323678666,1714159856057,-500.0,0.0001178,2]
[323678667,1714159856067,-3595.28,0.0001178,2]
[323678668,1714159856076,-265.39911209,0.0001178,2]
[323678669,1714159856086,-4191.02,0.0001178,2]
[323678670,1714159856095,-2252.77,0.0001178,2]
[323678671,1714159856104,-1538.51,0.0001178,2]
[323678672,1714159856113,-500.0,0.0001178,2]
[323678673,1714159856123,-2186.13,0.0001178,2]
[323678674,1714159856132,-1366.27,0.0001178,2]
[323678675,1714159856141,-909.87,0.0001178,2]
[323678676,1714159856150,-2198.98,0.0001178,2]
[323678677,1714159856159,-891.95,0.0001178,2]
[323678678,1714159856169,-796.92,0.0001178,2]
[323678679,1714159856178,-5838.33,0.0001178,2]
[323678680,1714159856187,-1890.82,0.0001178,2]
[323678681,1714159856196,-3702.33,0.0001178,2]
[323678682,1714159856205,-500.0,0.0001178,2]
[323678683,1714159856215,-1963.82,0.0001178,2]
[323678684,1714159856225,-2154.64,0.0001178,2]
[323678685,1714159856235,-867.14,0.0001178,2]
[323678686,1714159856244,-2372.44,0.0001178,2]
[323678687,1714159856254,-500.0,0.0001178,2]
[323678688,1714159856263,-4510.22,0.0001178,2]
[323678689,1714159856273,-500.0,0.0001178,2]
[323678690,1714159856282,-1470.12,0.0001178,2]
[323678691,1714159856291,-1081.84,0.0001178,2]
[323678692,1714159856301,-2465.42,0.0001178,2]
[323678693,1714159856310,-1591.78,0.0001178,2]
[323678694,1714159856370,-4572.23,0.0001178,2]
[323678695,1714159856381,-500.0,0.0001178,2]
[323678696,1714159856390,-881.87,0.0001178,2]
[323678697,1714159856399,-5646.67,0.0001178,2]
[323678698,1714159856408,-500.0,0.0001178,2]
[323678699,1714159856417,-654.29,0.0001178,2]
[323678700,1714159856427,-2969.24,0.0001178,2]
[323678701,1714159856438,-962.29,0.0001178,2]
[323678702,1714159856447,-500.0,0.0001178,2]
[323678703,1714159856456,-2885.58,0.0001178,2]
[323678704,1714159856467,-865.94,0.0001178,2]
[323678705,1714159856476,-1054.2,0.0001178,2]
[323678706,1714159856485,-856.74,0.0001178,2]
[323678707,1714159856495,-245.71886077,0.0001178,2]
[323678708,1714159856506,-1017.43,0.0001178,2]
[323678709,1714159856515,-940.44,0.0001178,2]
[323678710,1714159856525,-1246.24,0.0001178,2]
[323678711,1714159856536,-500.0,0.0001178,2]
[323678712,1714159856548,-500.0,0.0001178,2]
[323678713,1714159856558,-365.65851057,0.0001178,2]
[323678714,1714159856568,-908.96,0.0001178,2]
[323678715,1714159856578,-1724.94,0.0001178,2]
[323678716,1714159856588,-500.0,0.0001178,2]
[323678717,1714159856597,-500.0,0.0001178,2]
[323678718,1714159856607,-1095.85430365,0.0001178,2]
[323678719,1714159856621,-3486.55808762,0.0001178,2]
[323678720,1714159856659,-350.2695717,0.00010958,2]
[323678721,1714159856680,-149.7304283,0.00010958,2]
[323678722,1714159856689,-101.94760873,0.0001178,2]
[323678723,1714159856698,-395.77896281,0.0001178,2]
[323678724,1714159856731,-500.0,0.00010958,2]
[323678725,1714159856741,-248.79461256,0.0001178,2]
[323678726,1714159856750,-500.0,0.0001178,2]
[323678727,1714159856759,-5610.35,0.0001178,2]
[323678728,1714159856769,-500.0,0.0001178,2]
[323678729,1714159856778,-985.86,0.0001178,2]
[323678730,1714159856787,-500.0,0.0001178,2]
[323678731,1714159856796,-2974.11,0.0001178,2]
[323678732,1714159856806,-500.0,0.0001178,2]
[323678733,1714159856814,-2451.96,0.0001178,2]
[323678734,1714159856823,-793.01,0.0001178,2]
[323678735,1714159856833,-4076.46,0.0001178,2]
[323678736,1714159856841,-500.0,0.0001178,2]
[323678737,1714159856850,-3332.68,0.0001178,2]
[323678738,1714159856859,-1281.89,0.0001178,2]
[323678739,1714159856868,-3135.1,0.0001178,2]
[323678740,1714159856879,-500.0,0.0001178,2]
[323678741,1714159856888,-4598.56,0.0001178,2]
[323678742,1714159856897,-250.72138745,0.00011782,2]
[323678743,1714159857371,-194.51038073,0.00011222,2]
[323678744,1714159857380,-286.35,0.00011232,2]
[323678745,1714159857390,-148.36961927,0.00011232,2]
[323678746,1714159857413,-7919.69674932,0.00011232,2]
[323678747,1714159857424,-34.83859954,0.00011782,2]
[323678748,1714159857433,-219.66306455,0.00011783,2]
[323678749,1714159857443,-2179.97190532,0.00011783,2]
[323678750,1714159857452,-2000.0,0.00011783,2]
[323678751,1714159857462,-500.0,0.00011783,2]
[323678752,1714159857472,-500.0,0.00011783,2]
[323678753,1714159857482,-1865.52,0.00011783,2]
[323678754,1714159857492,-419.30968187,0.00011783,2]
[323678755,1714159857503,-1446.21031813,0.00011783,2]
[323678756,1714159857513,-1865.52,0.00011783,2]
[323678757,1714159857522,-683.6842735,0.00011784,2]
[323678758,1714159857534,-392.21023044,0.00011784,2]
[323678759,1714159857546,-352.61572526,0.00011784,2]
[323678760,1714159857557,-3071.16371988,0.00011784,2]
[323678761,1714159857567,-2215.83251815,0.00011784,2]
[323678762,1714159857577,-199.91772848,0.00011784,2]
[323678763,1714159857586,-206.75433877,0.00011784,2]
[323678764,1714159857595,-1995.07350816,0.00011784,2]
[323678765,1714159857605,-5159.25818656,0.00011784,2]
[323678766,1714159857621,-640.64,0.00011784,2]
[323678767,1714159857632,-441.73938732,0.00011784,2]
[323678768,1714159857644,-1395.23294934,0.00011784,2]
[323678769,1714159857656,-890.3522178,0.00011784,2]
[323678770,1714159857686,-496.44145359,0.00011784,2]
[323678771,1714159857705,-52044.62733895,0.00011784,2]
[323678772,1714159857717,-1956.64582434,0.00011784,2]
[323678773,1714159857729,-2758.992223,0.00011784,2]
[323678774,1714159857740,-7485.0,0.00011784,2]
[323678775,1714159858099,-257.125224,0.00010956,2]
[323678776,1714159858195,-68.45413865,0.00010956,2]
[323678777,1714159858206,-244.13668271,0.00010958,2]
[323678778,1714159858218,-255.86331729,0.00010958,2]
[323678779,1714159858227,-200.99078083,0.00010958,2]
[323678780,1714159858239,-299.00921917,0.00010958,2]
[323678781,1714159858248,-503.05454333,0.00011231,2]
[323678782,1714159858429,-27.7537948,0.00011231,2]
[323678783,1714159858441,-1056.30278722,0.00011231,2]
[323678784,1714159858452,-494.18987727,0.00011231,2]
[323678785,1714159858484,-1427.93337821,0.00011231,2]
[323678786,1714159858493,-1103.70414618,0.00011231,2]
[323678787,1714159858503,-500.0,0.00011232,2]
[323678788,1714159858512,-268.62,0.00011506,2]
[323678789,1714159858522,-9037.09896282,0.00011784,2]
[323678790,1714159858536,-6422.2,0.00011784,2]
[323678791,1714160086068,341.45,8.219e-05,2]
[323678796,1714160588886,324.37,8.219e-05,2]
[323678797,1714160700596,-781.59034095,8.935e-05,2]
[323678798,1714160700617,-565.57811459,8.936e-05,2]
[323678799,1714160700638,-4324.18335427,8.936e-05,2]
[323678800,1714160700659,-19328.64819019,8.936e-05,2]
[323678840,1714160952160,-194.45974608,8.871e-05,2]
[323678841,1714160952183,-200.87,8.872e-05,2]
[323678842,1714160952202,-284.70565757,8.878e-05,2]
[323678868,1714161031721,-1500.0,8.762e-05,2]
[323678869,1714161031730,-898.54500555,8.822e-05,2]
[323678870,1714161031740,-250.0,8.823e-05,2]
[323678871,1714161031749,-487.4952018,8.869e-05,2]
[323678872,1714161031759,-717.22595204,8.87e-05,2]
[323678873,1714161031769,-3129.68594909,8.878e-05,2]
[323678874,1714161031778,-2526.01,8.879e-05,2]
[323678875,1714161031787,-634.65,8.917e-05,2]
[323678876,1714161031797,-586.74036782,8.935e-05,2]
[323678877,1714161031806,-1000.0,8.938e-05,2]
[323678878,1714161031817,-228.82,9.034e-05,2]
[323678879,1714161031828,-228.82,9.059e-05,2]
[323678880,1714161031838,-228.82,9.084e-05,2]
[323678881,1714161031847,-228.82,9.109e-05,2]
[323678882,1714161031858,-228.82,9.133e-05,2]
[323678883,1714161031870,-228.82,9.158e-05,2]
[323678884,1714161031882,-228.82,9.183e-05,2]
[323678885,1714161031891,-228.82,9.208e-05,2]
[323678886,1714161031901,-228.82,9.232e-05,2]
[323678887,1714161031910,-228.82,9.257e-05,2]
[323678888,1714161031920,-228.82,9.282e-05,2]
[323678889,1714161031930,-228.82,9.307e-05,2]
[323678890,1714161031939,-228.82,9.332e-05,2]
[323678891,1714161031948,-228.82,9.356e-05,2]
[323678892,1714161031959,-177.8,9.365e-05,2]
[323678893,1714161031969,-228.82,9.381e-05,2]
[323678894,1714161031978,-228.82,9.406e-05,2]
[323678895,1714161031988,-228.82,9.431e-05,2]
[323678896,1714161031997,-228.82,9.455e-05,2]
[323678897,1714161032006,-228.82,9.48e-05,2]
[323678898,1714161032015,-228.82,9.505e-05,2]
[323678899,1714161032024,-499.99,9.67e-05,2]
[323678900,1714161032034,-2201.79,9.67e-05,2]
[323678901,1714161032044,-150.99,9.67e-05,2]
[323678902,1714161032054,-170.61,9.752e-05,2]
[323678903,1714161032063,-170.61,9.755e-05,2]
[323678904,1714161032073,-170.61,9.757e-05,2]
[323678905,1714161032082,-170.61,9.76e-05,2]
[323678906,1714161032091,-170.61,9.762e-05,2]
[323678908,1714161032100,-170.61,9.765e-05,2]
[323678910,1714161032109,-170.61,9.768e-05,2]
[323678912,1714161032119,-170.61,9.77e-05,2]
[323678914,1714161032129,-170.61,9.773e-05,2]
[323678916,1714161032139,-170.61,9.775e-05,2]
[323678917,1714161032150,-170.61,9.778e-05,2]
[323678918,1714161032161,-163.77,9.78e-05,2]
[323678919,1714161032170,-170.61,9.78e-05,2]
[323678920,1714161032180,-170.61,9.783e-05,2]
[323678921,1714161032190,-170.61,9.786e-05,2]